bitfinex/quotes_SOLUSD_20220211
["timestamp","ask_amount","ask_price","bid_price","bid_amount"]
[1644597576087,4.746,105.37,105.28,46.18357919]
[1644597576288,14.26618372,105.38,105.28,46.18357919]
[1644597576489,0.28764826,105.38,105.28,64.63957919]
[1644597577291,45.85689199,105.38,105.28,64.63957919]
[1644597577490,45.60689199,105.38,105.28,64.63957919]
[1644597577788,4.746,105.37,105.28,59.89357919]
[1644597579290,47.40095691,105.36,105.28,59.89357919]
[1644597579494,47.40095691,105.36,105.28,64.64057919]
[1644597580393,0.03764826,105.38,105.28,64.64057919]
[1644597580591,4.78464826,105.39,105.28,64.64057919]
[1644597580793,0.03764826,105.38,105.29,6.0]
[1644597580992,4.78464826,105.39,105.29,6.0]
[1644597581193,50.17208,105.39,105.3,39.86206349]
[1644597581492,50.13443174,105.39,105.3,39.86206349]
[1644597583195,50.38443174,105.39,105.3,39.86206349]
[1644597583797,50.38443174,105.39,105.3,53.79766349]
[1644597585097,4.997,105.39,105.3,53.79766349]
[1644597585496,0.03764826,105.4,105.31,2.38366791]
[1644597585696,0.03764826,105.4,105.31,50.93686791]
[1644597586098,0.03764826,105.42,105.32,43.83903696]
[1644597586296,0.03764826,105.43,105.33,48.4088]
[1644597586495,0.03764826,105.42,105.34,41.53827886]
[1644597586695,0.03764826,105.43,105.34,43.92194677]
[1644597586896,0.03764826,105.45,105.34,43.92194677]
[1644597587096,0.03764826,105.44,105.35,20.83766791]
[1644597587299,13.71,105.48,105.35,51.04246791]
[1644597587300,0.03764826,105.45,105.35,51.04246791]
[1644597587596,0.03764826,105.46,105.36,2.38366791]
[1644597587798,34.7240388,105.47,105.37,58.65406024]
[1644597587996,37.07005845,105.47,105.37,58.65406024]
[1644597588195,37.35770671,105.47,105.37,85.82432815]
[1644597589397,37.35770671,105.47,105.37,83.44066024]
[1644597589797,37.10770671,105.47,105.37,83.44066024]
[1644597590001,37.10770671,105.47,105.37,97.15066024]
[1644597590306,36.60770671,105.47,105.37,97.15066024]
[1644597591199,36.85770671,105.47,105.37,97.15066024]
[1644597593907,34.4740388,105.47,105.38,2.38366791]
[1644597594206,34.18639054,105.47,105.39,44.72246917]
[1644597594407,34.2240388,105.47,105.39,44.72246917]
[1644597594607,34.18639054,105.47,105.39,44.72246917]
[1644597596912,34.18639054,105.47,105.4,6.0]
[1644597597113,34.18639054,105.47,105.39,44.72246917]
[1644597597712,34.43639054,105.47,105.39,44.72246917]
[1644597598112,2.38366791,105.46,105.39,44.72246917]
[1644597598312,4.742,105.45,105.37,48.1283]
[1644597598512,4.742,105.45,105.38,6.0]
[1644597598715,7.12566791,105.45,105.38,6.0]
[1644597598914,7.12566791,105.45,105.35,6.0]
[1644597599313,43.91804232,105.44,105.36,42.99981541]
[1644597599712,4.743,105.43,105.37,6.0]
[1644597599914,36.59039898,105.42,105.38,40.88537775]
[1644597601218,4.743,105.41,105.35,4.743]
[1644597601815,4.993,105.41,105.35,4.743]
[1644597602017,42.07048728,105.4,105.35,51.44670433]
[1644597602216,4.744,105.39,105.35,51.44670433]
[1644597602415,4.744,105.39,105.35,50.94670433]
[1644597602635,0.03764826,105.42,105.35,46.70370433]
[1644597602933,0.03764826,105.43,105.35,49.08737224]
[1644597603136,28.0663,105.44,105.35,49.08737224]
[1644597603334,4.744,105.44,105.35,49.08737224]
[1644597603533,4.744,105.44,105.36,13.71]
[1644597603738,0.03764826,105.45,105.36,24.704]
[1644597603934,0.03764826,105.46,105.37,2.38366791]
[1644597604135,0.03764826,105.48,105.38,18.452]
[1644597604334,0.03764826,105.48,105.38,24.702]
[1644597604533,0.03764826,105.48,105.39,2.38366791]
[1644597604734,39.22163019,105.49,105.4,43.98040738]
[1644597604935,34.43998193,105.49,105.4,43.98040738]
[1644597605235,34.43998193,105.49,105.41,2.38366791]
[1644597605435,4.77964826,105.5,105.4,43.98040738]
[1644597605640,2.38366791,105.48,105.4,43.98040738]
[1644597605835,4.742,105.47,105.4,43.98040738]
[1644597606838,4.992,105.47,105.4,43.98040738]
[1644597607037,0.25,105.47,105.4,43.98040738]
[1644597607241,7.12566791,105.48,105.4,43.98040738]
[1644597607440,0.25,105.48,105.41,2.38366791]
[1644597607938,39.0947,105.49,105.41,16.61536791]
[1644597608141,4.77850104,105.5,105.42,37.27609293]
[1644597608338,0.03650104,105.51,105.42,64.36076084]
[1644597608539,0.03650104,105.51,105.43,2.38366791]
[1644597608739,36.24732848,105.52,105.45,38.34991533]
[1644597609039,36.28382952,105.52,105.46,14.2242]
[1644597609238,40.98632848,105.52,105.47,35.99623544]
[1644597609440,38.63099639,105.52,105.47,35.99623544]
[1644597610040,38.88099639,105.52,105.47,35.99623544]
[1644597610241,14.4765,105.52,105.47,35.99623544]
[1644597610441,117.739,105.53,105.47,35.99623544]
[1644597610649,113.0,105.53,105.47,35.99623544]
[1644597611244,0.03650104,105.54,105.47,35.99623544]
[1644597611442,49.46449813,105.55,105.47,35.99623544]
[1644597611641,4.739,105.55,105.47,35.99623544]
[1644597611844,4.739,105.55,105.47,50.21933544]
[1644597612042,4.739,105.55,105.48,6.0]
[1644597612641,4.739,105.55,105.49,36.59423298]
[1644597612843,0.03650104,105.57,105.51,53.52064521]
[1644597613042,20.26198196,105.59,105.51,53.52064521]
[1644597613043,18.99190104,105.59,105.51,53.52064521]
[1644597613245,14.2174,105.59,105.51,53.52064521]
[1644597613441,42.72475575,105.58,105.51,53.52064521]
[1644597613642,47.46175575,105.58,105.51,53.52064521]
[1644597614042,64.31352366,105.58,105.51,53.52064521]
[1644597614243,64.31352366,105.58,105.51,39.30414521]
[1644597617750,59.57652366,105.58,105.51,39.30414521]
[1644597618050,16.60176791,105.58,105.51,39.30414521]
[1644597618251,4.737,105.59,105.52,6.0]
[1644597618457,66.908,105.6,105.51,39.30414521]
[1644597618651,66.908,105.6,105.52,20.2152]
[1644597619053,113.31255297,105.6,105.53,41.11533449]
[1644597620557,66.908,105.6,105.53,41.11533449]
[1644597621256,62.171,105.6,105.53,41.11533449]
[1644597621457,46.71769871,105.59,105.53,41.11533449]
[1644597621658,4.736,105.58,105.53,41.11533449]
[1644597621856,40.8129204,105.57,105.49,14.2182]
[1644597622060,4.737,105.56,105.48,27.3658]
[1644597622259,7.12066791,105.56,105.48,4.736]
[1644597622457,2.38366791,105.55,105.48,4.736]
[1644597622860,62.69338083,105.55,105.49,37.49091714]
[1644597623458,27.29336791,105.57,105.49,37.49091714]
[1644597623857,24.9097,105.57,105.49,37.49091714]
[1644597624458,43.6174745,105.56,105.49,36.99091714]
[1644597624659,43.6174745,105.56,105.49,51.20971714]
[1644597624860,43.6174745,105.56,105.49,36.99091714]
[1644597625059,57.8382745,105.56,105.49,36.99091714]
[1644597625260,58.0882745,105.56,105.49,36.99091714]
[1644597625661,58.0882745,105.56,105.47,24.5594]
[1644597625860,52.1582,105.55,105.45,4.738]
[1644597626164,52.1582,105.55,105.46,6.0]
[1644597626362,52.19470104,105.55,105.44,37.3347]
[1644597626563,48.54866641,105.54,105.45,43.80582834]
[1644597626762,45.15004167,105.52,105.45,43.80582834]
[1644597627163,59.37684167,105.52,105.45,43.80582834]
[1644597627564,59.37684167,105.52,105.44,23.1102]
[1644597627764,59.37684167,105.52,105.37,229.47454193]
[1644597627765,4.74,105.51,105.39,4.74]
[1644597627964,4.74,105.51,105.39,18.45]
[1644597628165,14.2311,105.49,105.39,18.45]
[1644597628365,4.742,105.48,105.37,46.7265]
[1644597628564,44.75915451,105.47,105.38,39.93672641]
[1644597628789,4.742,105.46,105.38,39.93672641]
[1644597628967,46.96366114,105.45,105.38,39.93672641]
[1644597629165,4.743,105.44,105.38,39.93672641]
[1644597629365,46.96366114,105.45,105.38,39.93672641]
[1644597630167,46.96366114,105.45,105.38,42.32039432]
[1644597630767,46.96366114,105.45,105.37,51.4695]
[1644597631865,4.743,105.44,105.37,95.90580176]
[1644597632265,43.58704877,105.43,105.37,95.90580176]
[1644597632466,43.58704877,105.43,105.37,44.43630176]
[1644597633565,14.2356,105.45,105.37,44.43630176]
[1644597633767,14.4856,105.45,105.37,44.43630176]
[1644597633967,18.9786,105.45,105.37,44.43630176]
[1644597634171,4.743,105.45,105.37,58.92140176]
[1644597634365,38.4619,105.46,105.37,58.92140176]
[1644597634565,43.2049,105.46,105.37,61.30506967]
[1644597634766,35.91978518,105.45,105.39,48.80550262]
[1644597635368,43.2049,105.46,105.39,48.80550262]
[1644597635566,28.971,105.46,105.39,48.80550262]
[1644597635765,29.221,105.46,105.39,48.80550262]
[1644597636166,28.971,105.46,105.39,48.80550262]
[1644597636568,24.228,105.46,105.39,48.80550262]
[1644597636766,24.228,105.46,105.39,63.03800262]
[1644597637171,37.3788,105.47,105.39,63.03800262]
[1644597637369,0.03650104,105.48,105.4,6.0]
[1644597637669,45.82266284,105.48,105.41,39.15311411]
[1644597639873,46.07266284,105.48,105.41,39.15311411]
[1644597640274,60.30376284,105.48,105.41,39.15311411]
[1644597643071,46.07266284,105.48,105.41,53.38321411]
[1644597643675,22.58390104,105.5,105.41,58.12421411]
[1644597643873,4.77750104,105.51,105.42,2.38366791]
[1644597644074,1.30658196,105.54,105.44,14.2259]
[1644597644275,0.03650104,105.53,105.44,14.2259]
[1644597644477,1.343083,105.54,105.44,14.2259]
[1644597644675,45.15588129,105.53,105.45,47.24438927]
[1644597644876,49.89488129,105.53,105.45,47.24438927]
[1644597645082,14.2256,105.52,105.45,47.24438927]
[1644597645275,40.37239536,105.51,105.45,47.24438927]
[1644597645775,40.37239536,105.51,105.46,6.0]
[1644597646878,54.60049536,105.51,105.47,47.41110766]
[1644597647179,14.2281,105.51,105.47,47.41110766]
[1644597647376,14.4781,105.51,105.47,47.41110766]
[1644597648078,14.2254,105.52,105.47,47.41110766]
[1644597648278,1.30658196,105.55,105.47,47.66110766]
[1644597648479,0.03650104,105.55,105.48,2.38366791]
[1644597648680,0.03650104,105.56,105.48,2.38366791]
[1644597648878,26.14398196,105.57,105.48,7.12166791]
[1644597648879,26.180483,105.57,105.48,7.12166791]
[1644597649080,45.71021813,105.55,105.47,47.66110766]
[1644597649480,45.96021813,105.55,105.47,47.66110766]
[1644597649682,45.96021813,105.55,105.49,36.63400838]
[1644597650485,45.96021813,105.55,105.46,45.1843]
[1644597650682,4.738,105.54,105.44,27.9369]
[1644597650882,4.738,105.54,105.43,76.8429]
[1644597651189,2.38366791,105.53,105.43,51.8523]
[1644597651402,36.53105545,105.51,105.44,38.18140816]
[1644597651602,42.02263133,105.49,105.44,38.18140816]
[1644597651800,56.25243133,105.49,105.44,38.18140816]
[1644597654701,56.50243133,105.49,105.44,38.18140816]
[1644597654903,56.50243133,105.49,105.43,47.1143]
[1644597655105,56.50243133,105.49,105.41,14.2309]
[1644597655402,4.741,105.48,105.39,47.9498]
[1644597655608,14.2337,105.46,105.39,47.9498]
[1644597655805,60.32702838,105.46,105.4,47.00062217]
[1644597656001,0.03650104,105.48,105.4,67.23292217]
[1644597656202,47.97800104,105.49,105.4,69.61659008]
[1644597656406,47.9415,105.49,105.4,69.61659008]
[1644597657007,48.77735728,105.48,105.4,69.61659008]
[1644597657207,4.742,105.47,105.4,69.61659008]
[1644597657412,48.77735728,105.48,105.4,69.61659008]
[1644597658209,49.02735728,105.48,105.4,69.86659008]
[1644597658610,0.25,105.48,105.41,4.742]
[1644597658814,0.25,105.48,105.43,14.2285]
[1644597659410,14.229,105.49,105.43,14.2285]
[1644597659611,14.479,105.49,105.44,44.7025758]
[1644597660013,14.229,105.49,105.44,44.7025758]
[1644597660311,50.46565774,105.49,105.44,44.7025758]
[1644597660510,14.229,105.49,105.44,44.7025758]
[1644597660711,14.2275,105.5,105.44,44.7025758]
[1644597660912,14.2275,105.5,105.44,58.9297758]
[1644597661111,24.94570104,105.52,105.44,61.31344371]
[1644597661314,47.46250104,105.53,105.44,61.56344371]
[1644597661513,4.74,105.53,105.44,61.56344371]
[1644597661712,18.9636,105.53,105.45,6.0]
[1644597661914,18.9636,105.53,105.47,14.2233]
[1644597662114,41.54105722,105.52,105.47,14.2233]
[1644597662313,14.2236,105.53,105.47,14.2233]
[1644597662515,0.03650104,105.54,105.47,16.60696791]
[1644597662712,6.082083,105.56,105.48,6.0]
[1644597662916,0.03650104,105.57,105.48,24.449]
[1644597663114,0.03650104,105.58,105.5,14.2145]
[1644597663313,0.03650104,105.6,105.51,27.05432336]
[1644597663515,4.736,105.6,105.51,22.31732336]
[1644597663714,35.46556114,105.59,105.51,22.56732336]
[1644597664115,35.46556114,105.59,105.53,14.2143]
[1644597664316,35.46556114,105.59,105.53,55.8289501]
[1644597664814,35.46556114,105.59,105.53,41.6146501]
[1644597665021,35.46556114,105.59,105.51,6.0]
[1644597665215,4.736,105.58,105.51,14.2184]
[1644597665415,4.736,105.58,105.5,6.0]
[1644597666015,41.9999299,105.57,105.51,35.06271752]
[1644597666215,18.9585,105.56,105.51,35.06271752]
[1644597666416,45.15395512,105.55,105.51,35.06271752]
[1644597666616,45.15395512,105.55,105.48,13.71]
[1644597666815,4.738,105.54,105.46,13.71]
[1644597667016,7.12166791,105.54,105.43,63.13654193]
[1644597667215,7.15816895,105.54,105.43,67.87554193]
[1644597667417,0.03650104,105.53,105.43,63.13654193]
[1644597667618,4.74,105.52,105.44,48.66588835]
[1644597667819,41.10136673,105.51,105.44,48.66588835]
[1644597668517,45.84136673,105.51,105.44,48.66588835]
[1644597668717,45.84136673,105.51,105.45,14.2253]
[1644597669117,46.09136673,105.51,105.45,14.2253]
[1644597669320,46.09136673,105.51,105.46,45.98960858]
[1644597670019,60.31806673,105.51,105.44,14.2275]
[1644597670220,70.00356777,105.51,105.44,14.2275]
[1644597670418,69.96706673,105.51,105.43,61.792]
[1644597671021,69.96706673,105.51,105.44,45.95612729]
[1644597671625,65.22706673,105.51,105.44,45.95612729]
[1644597672828,4.74,105.5,105.44,45.95612729]
[1644597673124,38.36589919,105.49,105.44,45.95612729]
[1644597673725,38.61589919,105.49,105.44,45.95612729]
[1644597674826,52.84499919,105.49,105.44,45.95612729]
[1644597675728,14.4791,105.49,105.44,45.95612729]
[1644597675927,0.25,105.49,105.44,60.18362729]
[1644597676331,19.2178,105.5,105.44,60.18362729]
[1644597676529,14.4778,105.5,105.44,60.18362729]
[1644597676829,43.73544384,105.49,105.44,60.18362729]
[1644597677031,43.73544384,105.49,105.44,45.95612729]
[1644597677731,57.96444384,105.49,105.43,14.229]
[1644597677931,4.741,105.48,105.41,4.74]
[1644597678132,43.73544384,105.49,105.41,4.74]
[1644597678335,4.741,105.48,105.41,4.74]
[1644597678532,2.38366791,105.47,105.41,4.74]
[1644597678733,48.67249691,105.46,105.38,45.25529477]
[1644597678932,14.2371,105.45,105.38,43.91075284]
[1644597679133,37.08896849,105.44,105.38,43.91075284]
[1644597680135,37.08896849,105.44,105.38,51.03742075]
[1644597681234,37.33896849,105.44,105.38,51.03742075]
[1644597681438,37.33896849,105.44,105.38,48.65375284]
[1644597681837,37.33896849,105.44,105.38,62.88815284]
[1644597682936,0.25,105.44,105.38,58.14515284]
[1644597683338,14.2363,105.45,105.38,58.14515284]
[1644597683539,14.2363,105.45,105.38,62.88815284]
[1644597683838,14.2363,105.45,105.38,62.38815284]
[1644597684038,37.14846046,105.44,105.38,57.64515284]
[1644597685239,37.39846046,105.44,105.38,57.64515284]
[1644597688752,51.63486046,105.44,105.38,43.41075284]
[1644597691653,4.743,105.43,105.38,43.41075284]
[1644597691852,18.9804,105.43,105.38,43.41075284]
[1644597693372,52.2019,105.46,105.38,43.41075284]
[1644597693672,4.743,105.46,105.39,2.38366791]
[1644597693878,4.742,105.48,105.39,13.12566791]
[1644597694074,4.742,105.48,105.39,37.24440984]
[1644597694474,41.79959015,105.48,105.4,44.04769395]
[1644597694979,41.79959015,105.48,105.4,44.29769395]
[1644597695174,4.742,105.48,105.4,44.29769395]
[1644597695375,4.742,105.48,105.4,45.64223588]
[1644597695777,4.742,105.48,105.4,59.87363588]
[1644597695980,4.742,105.48,105.4,62.25730379]
[1644597696378,39.80682355,105.48,105.4,62.25730379]
[1644597696580,40.05682355,105.48,105.4,62.25730379]
[1644597696782,40.05682355,105.48,105.4,59.87363588]
[1644597697279,40.05682355,105.48,105.4,73.87353588]
[1644597697679,4.992,105.48,105.4,73.87353588]
[1644597697880,4.77850104,105.51,105.41,4.742]
[1644597698082,4.77750104,105.53,105.44,14.2265]
[1644597698286,0.03650104,105.51,105.44,14.2265]
[1644597698482,4.77750104,105.53,105.44,16.61016791]
[1644597698683,48.65807481,105.53,105.45,44.92437951]
[1644597699683,62.88297481,105.53,105.45,44.92437951]
[1644597700290,63.13297481,105.53,105.45,44.92437951]
[1644597701387,63.13297481,105.53,105.43,93.6964]
[1644597701591,0.03650104,105.52,105.43,46.2802]
[1644597701788,14.2303,105.5,105.43,46.2802]
[1644597701990,4.74,105.49,105.43,46.2802]
[1644597702189,4.74,105.49,105.4,1.34454193]
[1644597702389,27.3757,105.5,105.4,1.34454193]
[1644597702590,42.36787378,105.49,105.41,35.6189253]
[1644597702788,4.741,105.48,105.41,35.6189253]
[1644597702989,38.18709498,105.47,105.41,35.6189253]
[1644597703188,38.18709498,105.47,105.42,14.2303]
[1644597703390,4.742,105.46,105.41,35.6189253]
[1644597703588,38.18709498,105.47,105.41,35.6189253]
[1644597703989,4.742,105.46,105.39,25.45194193]
[1644597704190,14.2356,105.44,105.38,1.34454193]
[1644597704390,4.743,105.43,105.37,1.34454193]
[1644597704890,4.743,105.45,105.37,1.34454193]
[1644597705090,37.44911253,105.44,105.38,40.59885583]
[1644597705292,4.743,105.43,105.38,40.59885583]
[1644597705489,37.44911253,105.44,105.38,40.59885583]
[1644597705691,14.238,105.43,105.38,40.59885583]
[1644597705891,35.03739359,105.42,105.38,40.59885583]
[1644597706291,35.03739359,105.42,105.39,6.0]
[1644597706492,0.25,105.44,105.38,40.59885583]
[1644597706695,4.743,105.43,105.36,15.58254193]
[1644597706893,14.2384,105.42,105.35,29.24304193]
[1644597707093,4.744,105.41,105.35,27.8985]
[1644597707393,4.744,105.41,105.35,29.24304193]
[1644597707592,4.744,105.42,105.35,29.24304193]
[1644597707793,40.3034898,105.42,105.36,46.81205746]
[1644597708194,14.2413,105.4,105.34,1.34454193]
[1644597708397,14.2413,105.4,105.33,1.34454193]
[1644597708596,4.745,105.39,105.33,1.34454193]
[1644597708797,4.745,105.4,105.33,1.34454193]
[1644597709097,7.12766791,105.41,105.31,1.34454193]
[1644597709297,46.39760752,105.38,105.33,42.5324269]
[1644597709796,4.745,105.37,105.33,42.5324269]
[1644597709995,60.64320752,105.38,105.33,42.5324269]
[1644597711199,4.745,105.37,105.31,1.34454193]
[1644597711402,14.2476,105.36,105.31,1.34454193]
[1644597711700,4.746,105.35,105.28,1.34454193]
[1644597711901,7.12966791,105.35,105.28,1.34454193]
[1644597712101,37.7189643,105.34,105.27,38.50158195]
[1644597712704,4.747,105.36,105.27,38.75158195]
[1644597712906,4.747,105.38,105.29,1.34454193]
[1644597713108,63.6644,105.41,105.29,1.34454193]
[1644597713305,66.04806791,105.41,105.3,1.34454193]
[1644597713706,43.09102886,105.4,105.31,44.19721756]
[1644597713908,40.23207324,105.38,105.31,44.19721756]
[1644597714307,45.66674472,105.36,105.31,44.19721756]
[1644597715407,14.2462,105.37,105.31,44.19721756]
[1644597715809,14.2445,105.39,105.31,44.19721756]
[1644597716008,4.746,105.38,105.31,44.19721756]
[1644597716208,14.2445,105.39,105.32,4.746]
[1644597716409,59.00214134,105.39,105.33,42.00207305]
[1644597716607,4.746,105.4,105.33,42.00207305]
[1644597716808,14.2423,105.4,105.33,42.25207305]
[1644597717010,14.2423,105.4,105.34,4.745]
[1644597717207,14.2423,105.4,105.33,42.00207305]
[1644597717208,4.745,105.39,105.33,42.00207305]
[1644597717612,39.04402993,105.38,105.33,42.00207305]
[1644597717813,39.04402993,105.38,105.3,50.76934193]
[1644597718013,39.04402993,105.38,105.31,6.0]
[1644597718213,39.29402993,105.38,105.31,4.746]
[1644597719242,53.53892993,105.38,105.3,81.61353412]
[1644597719537,53.53892993,105.38,105.3,76.86753412]
[1644597719538,41.52489,105.36,105.3,76.86753412]
[1644597719935,4.746,105.37,105.3,76.86753412]
[1644597720134,14.4949,105.38,105.31,4.746]
[1644597720336,0.25,105.38,105.31,4.746]
[1644597720936,0.25,105.38,105.32,35.67519535]
[1644597721137,0.25,105.38,105.31,4.996]
[1644597721340,41.6030119,105.39,105.31,4.996]
[1644597721538,41.8530119,105.39,105.31,4.996]
[1644597721737,56.0965119,105.39,105.31,19.239]
[1644597722138,14.2435,105.39,105.31,19.239]
[1644597722435,186.4698,105.48,105.32,17.39]
[1644597722436,2.38366791,105.43,105.32,17.39]
[1644597722636,4.746,105.45,105.33,50.04444193]
[1644597722835,51.2855,105.46,105.34,6.0]
[1644597723036,14.2365,105.45,105.36,14.2358]
[1644597723236,47.87525638,105.44,105.37,51.2443393]
[1644597723436,14.2365,105.45,105.37,51.2443393]
[1644597723637,14.2365,105.45,105.37,53.87800721]
[1644597723938,14.2365,105.45,105.37,51.4943393]
[1644597724137,14.2365,105.45,105.37,51.2443393]
[1644597724337,34.42905274,105.44,105.37,51.2443393]
[1644597724542,34.42905274,105.44,105.37,55.9873393]
[1644597724741,34.42905274,105.44,105.37,70.2221393]
[1644597725739,34.67905274,105.44,105.37,70.2221393]
[1644597726442,48.91575274,105.44,105.37,65.4791393]
[1644597726643,48.91575274,105.44,105.37,51.2443393]
[1644597727743,38.67447072,105.42,105.37,45.2443393]
[1644597728343,38.67447072,105.42,105.36,4.743]
[1644597729446,52.91427072,105.42,105.36,4.743]
[1644597729745,7.12766791,105.41,105.36,4.743]
[1644597730350,2.38366791,105.4,105.31,1.34454193]
[1644597730547,2.38366791,105.4,105.3,28.0394]
[1644597730548,14.2471,105.37,105.3,72.24244354]
[1644597730845,42.34138377,105.36,105.3,24.63994193]
[1644597731248,42.34138377,105.36,105.3,1.34454193]
[1644597731646,4.746,105.35,105.3,1.34454193]
[1644597731848,4.746,105.35,105.29,1.34454193]
[1644597731849,35.84860437,105.34,105.29,1.34454193]
[1644597732347,4.747,105.33,105.28,1.34454193]
[1644597732948,37.23300044,105.32,105.28,1.34454193]
[1644597733147,47.5049,105.36,105.28,1.34454193]
[1644597733354,4.747,105.35,105.29,1.34454193]
[1644597733548,4.747,105.35,105.28,1.34454193]
[1644597733747,4.747,105.35,105.29,1.34454193]
[1644597734047,48.03806435,105.35,105.29,45.83555648]
[1644597734447,48.03806435,105.35,105.29,1.34454193]
[1644597734748,62.28776435,105.35,105.29,1.34454193]
[1644597734947,62.28776435,105.35,105.28,1.34454193]
[1644597735451,62.28776435,105.35,105.28,42.72700658]
[1644597736152,62.28776435,105.35,105.29,1.34454193]
[1644597736751,62.53776435,105.35,105.29,1.34454193]
[1644597738958,62.53776435,105.35,105.28,1.34454193]
[1644597739158,48.28806435,105.35,105.28,15.59354193]
[1644597739358,48.28806435,105.35,105.29,1.34454193]
[1644597740564,48.28806435,105.35,105.3,39.52982003]
[1644597741466,48.28806435,105.35,105.29,15.59184193]
[1644597742466,48.28806435,105.35,105.29,57.84479454]
[1644597742668,48.28806435,105.35,105.29,15.59184193]
[1644597743067,48.28806435,105.35,105.29,14.2473]
[1644597743268,4.747,105.34,105.28,1.34454193]
[1644597743667,40.77347941,105.33,105.28,1.34454193]
[1644597744872,4.748,105.32,105.27,1.34454193]
[1644597745285,40.77347941,105.33,105.27,1.34454193]
[1644597745687,40.77347941,105.33,105.27,36.09605013]
[1644597745887,43.7298,105.36,105.27,36.09605013]
[1644597746089,43.7298,105.36,105.28,3.72820984]
[1644597746486,43.7298,105.36,105.28,1.34454193]
[1644597746886,34.37575139,105.35,105.29,38.6316716]
[1644597747286,34.62575139,105.35,105.29,38.6316716]
[1644597747491,29.4799,105.36,105.29,38.6316716]
[1644597747688,24.7319,105.36,105.29,47.10688144]
[1644597748091,24.7319,105.36,105.3,1.34454193]
[1644597748591,24.7319,105.36,105.31,43.69414741]
[1644597748789,0.25,105.36,105.31,43.69414741]
[1644597749189,57.13795311,105.37,105.31,43.69414741]
[1644597750091,61.88395311,105.37,105.31,43.69414741]
[1644597751099,14.2461,105.38,105.31,57.93934741]
[1644597751294,52.2273,105.42,105.31,61.91755725]
[1644597751493,4.746,105.42,105.32,10.746]
[1644597751691,4.746,105.42,105.32,12.34054193]
[1644597751892,4.746,105.42,105.33,3.72820984]
[1644597752093,36.10510046,105.41,105.34,36.13666478]
[1644597752293,36.10510046,105.41,105.34,36.38666478]
[1644597752493,4.746,105.42,105.34,36.38666478]
[1644597752693,4.744,105.44,105.35,6.0]
[1644597752894,4.744,105.45,105.35,58.7683]
[1644597753099,4.744,105.45,105.36,3.72820984]
[1644597753394,4.743,105.48,105.37,10.743]
[1644597753597,36.39883284,105.47,105.4,14.2325]
[1644597753795,4.742,105.46,105.41,35.03238696]
[1644597753995,41.14083284,105.47,105.41,35.03238696]
[1644597754596,36.39883284,105.47,105.41,35.03238696]
[1644597754797,36.64883284,105.47,105.41,35.03238696]
[1644597755702,36.64883284,105.47,105.41,49.26398696]
[1644597756401,36.39883284,105.47,105.41,49.26398696]
[1644597756602,4.742,105.49,105.41,51.64765487]
[1644597756801,0.03650104,105.51,105.42,22.132]
[1644597757001,0.03650104,105.53,105.45,14.2243]
[1644597757201,4.741,105.54,105.45,14.4743]
[1644597757202,0.03650104,105.51,105.45,14.4743]
[1644597757402,0.03650104,105.53,105.45,14.4743]
[1644597757601,43.41627316,105.53,105.46,43.06312777]
[1644597757801,43.4527742,105.53,105.46,43.31312777]
[1644597758000,43.41627316,105.53,105.46,43.31312777]
[1644597758203,43.41627316,105.53,105.46,38.57412777]
[1644597758401,48.15527316,105.53,105.44,18.9647]
[1644597758602,48.15527316,105.53,105.44,14.2257]
[1644597758805,48.1917742,105.53,105.44,14.2257]
[1644597759002,48.15527316,105.53,105.44,14.2257]
[1644597759802,62.63187316,105.53,105.44,14.2257]
[1644597760402,65.01554107,105.53,105.42,16.13]
[1644597760602,0.03650104,105.52,105.4,11.39]
[1644597760808,14.2319,105.49,105.4,6.0]
[1644597761003,4.741,105.48,105.39,49.5201]
[1644597761204,48.31983715,105.47,105.39,49.5201]
[1644597761407,48.31983715,105.47,105.4,40.20163791]
[1644597761607,41.19689179,105.45,105.39,49.5201]
[1644597761808,41.19689179,105.45,105.36,11.39]
[1644597761809,4.742,105.44,105.36,11.39]
[1644597762007,4.742,105.44,105.35,11.39]
[1644597762210,41.19689179,105.45,105.36,10.743]
[1644597762606,41.19689179,105.45,105.37,39.98456709]
[1644597763206,41.44689179,105.45,105.37,39.98456709]
[1644597763706,55.68439179,105.45,105.37,39.98456709]
[1644597764110,41.19689179,105.45,105.37,39.98456709]
[1644597764306,41.19689179,105.45,105.39,48.5157363]